{"text_format":"1","workbook":"xlsx","n_sheets":1,"sheets":["wksPositionTable"],"not_rendered":{"charts":0,"images":0,"macros":1,"external_links":0,"defined_names":86,"comments":0,"pivot_tables":0},"unopened":[],"bounds":{"document_bytes":16777216,"sheet_cells":100000,"rows_first":2000,"rows_last":500,"rows_between":2000,"halvings":0,"cell_chars":16384,"cell_head_chars":4096},"cells_cut":0,"cells_raw":0,"read":"whole","date_system":"1900"}

{"sheet":"wksPositionTable","index":0,"n_rows":86,"n_cols":33,"rows_kept":86,"cut":false,"hidden":false,"merged":[]}
["Allowable label positions for chart types",null,null,"xlBarClustered","xlBarStacked","xlBarStacked100","xlBubble","xlBubble3DEffect","xlColumnClustered","xlColumnStacked","xlColumnStacked100","xlLine","xlLineMarkers","xlLineMarkersStacked","xlLIneMarkersStacked100","xlLineStacked","xlLineStacked100","xl3Dpie","xl3DPieExploded","xlBarOfPie","xlPie","xlPieExploded","xlPieOfPie","xlXYScatter","xlXYScatterLines","xlXYScatterLinesNoMarkers","xlXYScatterSmooth","xlXYScatterSmoothNoMarkers","Unknown","xlStockOHLC","xlStockHLC","xlStockVHLC","xlStockVOHLC"]
["whose labels can be positioned",null,null,{"$f":"xlBarClustered","v":57},{"$f":"xlBarStacked","v":58},{"$f":"xlBarStacked100","v":59},{"$f":"xlBubble","v":15},{"$f":"xlBubble3DEffect","v":87},{"$f":"xlColumnClustered","v":51},{"$f":"xlColumnStacked","v":52},{"$f":"xlColumnStacked100","v":53},{"$f":"xlLine","v":4},{"$f":"xlLineMarkers","v":65},{"$f":"xlLineMarkersStacked","v":66},{"$f":"xlLIneMarkersStacked100","v":67},{"$f":"xlLineStacked","v":63},{"$f":"xlLineStacked100","v":64},{"$f":"xl3Dpie","v":-4102},{"$f":"xl3DPieExploded","v":70},{"$f":"xlBarOfPie","v":71},{"$f":"xlPie","v":5},{"$f":"xlPieExploded","v":69},{"$f":"xlPieOfPie","v":68},{"$f":"xlXYScatter","v":-4169},{"$f":"xlXYScatterLines","v":74},{"$f":"xlXYScatterLinesNoMarkers","v":75},{"$f":"xlXYScatterSmooth","v":72},{"$f":"xlXYScatterSmoothNoMarkers","v":73},-4111,{"$f":"xlStockOHLC","v":89},{"$f":"xlStockHLC","v":88},{"$f":"xlStockVHLC","v":90},{"$f":"xlStockVOHLC","v":91}]
["Above","xlLabelPositionAbove",{"$f":"xlLabelPositionAbove","v":0},false,false,false,true,true,false,false,false,true,true,true,true,true,true,false,false,false,false,false,false,true,true,true,true,true,true,true,true,true,true]
["Below","xlLabelPositionBelow",{"$f":"xlLabelPositionBelow","v":1},false,false,false,true,true,false,false,false,true,true,true,true,true,true,false,false,false,false,false,false,true,true,true,true,true,true,true,true,true,true]
["Left","xlLabelPositionLeft",{"$f":"xlLabelPositionLeft","v":-4131},false,false,false,true,true,false,false,false,true,true,true,true,true,true,false,false,false,false,false,false,true,true,true,true,true,true,true,true,true,true]
["Right","xlLabelPositionRight",{"$f":"xlLabelPositionRight","v":-4152},false,false,false,true,true,false,false,false,true,true,true,true,true,true,false,false,false,false,false,false,true,true,true,true,true,true,true,true,true,true]
["Center","xlLabelPositionCenter",{"$f":"xlLabelPositionCenter","v":-4108},true,true,true,true,true,true,true,true,true,true,true,true,true,true,true,true,true,true,true,true,true,true,true,true,true,true,true,true,true,true]
["Inside Base","xlLabelPositionInsideBase",{"$f":"xlLabelPositionInsideBase","v":4},true,true,true,false,false,true,true,true,false,false,false,false,false,false,false,false,false,false,false,false,false,false,false,false,false,false,false,false,false,false]
["Inside End","xlLabelPositionInsideEnd",{"$f":"xlLabelPositionInsideEnd","v":3},true,true,true,false,false,true,true,true,false,false,false,false,false,false,true,true,true,true,true,true,false,false,false,false,false,false,false,false,false,false]
["Outside End","xlLabelPositionOutsideEnd",{"$f":"xlLabelPositionOutsideEnd","v":2},true,false,false,false,false,true,false,false,false,false,false,false,false,false,true,true,true,true,true,true,false,false,false,false,false,false,false,false,false,false]
["Best Fit","xlLabelPositionBestFit",{"$f":"xlLabelPositionBestFit","v":5},false,false,false,false,false,false,false,false,false,false,false,false,false,false,true,true,true,true,true,true,false,false,false,false,false,false,false,false,false,false]
[]
[]
[]
["These chart types can be labeled. The third column indicates"]
["whether their labels can also be positioned."]
["xl3DArea",{"$f":"xl3DArea","v":-4098},false]
["xl3DAreaStacked",{"$f":"xl3DAreaStacked","v":78},false]
["xl3DAreaStacked100",{"$f":"xl3DAreaStacked100","v":79},false]
["xlArea",{"$f":"xlArea","v":1},false]
["xlAreaStacked",{"$f":"xlAreaStacked","v":76},false]
["xlAreaStacked100",{"$f":"xlAreaStacked100","v":77},false]
["xl3DBarClustered",{"$f":"xl3DBarClustered","v":60},false]
["xl3DBarStacked",{"$f":"xl3DBarStacked","v":61},false]
["xl3DBarStacked100",{"$f":"xl3DBarStacked100","v":62},false]
["xl3DColumn",{"$f":"xl3DColumn","v":-4100},false]
["xl3DColumnClustered",{"$f":"xl3DColumnClustered","v":54},false]
["xl3DColumnStacked",{"$f":"xl3DColumnStacked","v":55},false]
["xl3DColumnStacked100",{"$f":"xl3DColumnStacked100","v":56},false]
["xlConeBarClustered",{"$f":"xlConeBarClustered","v":102},false]
["xlConeBarStacked",{"$f":"xlConeBarStacked","v":103},false]
["xlConeBarStacked100",{"$f":"xlConeBarStacked100","v":104},false]
["xlConeCol",{"$f":"xlConeCol","v":105},false]
["xlConeColClustered",{"$f":"xlConeColClustered","v":99},false]
["xlConeColStacked",{"$f":"xlConeColStacked","v":100},false]
["xlConeColStacked100",{"$f":"xlConeColStacked100","v":101},false]
["xlCylinderBarClustered",{"$f":"xlCylinderBarClustered","v":95},false]
["xlCylinderBarStacked",{"$f":"xlCylinderBarStacked","v":96},false]
["xlCylinderBarStacked100",{"$f":"xlCylinderBarStacked100","v":97},false]
["xlCylinderCol",{"$f":"xlCylinderCol","v":98},false]
["xlCylinderColClustered",{"$f":"xlCylinderColClustered","v":92},false]
["xlCylinderColStacked",{"$f":"xlCylinderColStacked","v":93},false]
["xlCylinderColStacked100",{"$f":"xlCylinderColStacked100","v":94},false]
["xlDoughnut",{"$f":"xlDoughnut","v":-4120},false]
["xlDoughnutExploded",{"$f":"xlDoughnutExploded","v":80},false]
["xl3DLine",{"$f":"xl3DLine","v":-4101},false]
["xlPyramidBarClustered",{"$f":"xlPyramidBarClustered","v":109},false]
["xlPyramidBarStacked",{"$f":"xlPyramidBarStacked","v":110},false]
["xlPyramidBarStacked100",{"$f":"xlPyramidBarStacked100","v":111},false]
["xlPyramidCol",{"$f":"xlPyramidCol","v":112},false]
["xlPyramidColClustered",{"$f":"xlPyramidColClustered","v":106},false]
["xlPyramidColStacked",{"$f":"xlPyramidColStacked","v":107},false]
["xlPyramidColStacked100",{"$f":"xlPyramidColStacked100","v":108},false]
["xlRadar",{"$f":"xlRadar","v":-4151},false]
["xlRadarFilled",{"$f":"xlRadarFilled","v":82},false]
["xlRadarMarkers",{"$f":"xlRadarMarkers","v":81},false]
["xlBarClustered",{"$f":"xlBarClustered","v":57},true]
["xlBarStacked",{"$f":"xlBarStacked","v":58},true]
["xlBarStacked100",{"$f":"xlBarStacked100","v":59},true]
["xlBubble",{"$f":"xlBubble","v":15},true]
["xlBubble3DEffect",{"$f":"xlBubble3DEffect","v":87},true]
["xlColumnClustered",{"$f":"xlColumnClustered","v":51},true]
["xlColumnStacked",{"$f":"xlColumnStacked","v":52},true]
["xlColumnStacked100",{"$f":"xlColumnStacked100","v":53},true]
["xlLine",{"$f":"xlLine","v":4},true]
["xlLineMarkers",{"$f":"xlLineMarkers","v":65},true]
["xlLineMarkersStacked",{"$f":"xlLineMarkersStacked","v":66},true]
["xlLIneMarkersStacked100",{"$f":"xlLIneMarkersStacked100","v":67},true]
["xlLineStacked",{"$f":"xlLineStacked","v":63},true]
["xlLineStacked100",{"$f":"xlLineStacked100","v":64},true]
["xl3Dpie",{"$f":"xl3Dpie","v":-4102},true]
["xl3DPieExploded",{"$f":"xl3DPieExploded","v":70},true]
["xlBarOfPie",{"$f":"xlBarOfPie","v":71},true]
["xlPie",{"$f":"xlPie","v":5},true]
["xlPieExploded",{"$f":"xlPieExploded","v":69},true]
["xlPieOfPie",{"$f":"xlPieOfPie","v":68},true]
["xlXYScatter",{"$f":"xlXYScatter","v":-4169},true]
["xlXYScatterLines",{"$f":"xlXYScatterLines","v":74},true]
["xlXYScatterLinesNoMarkers",{"$f":"xlXYScatterLinesNoMarkers","v":75},true]
["xlXYScatterSmooth",{"$f":"xlXYScatterSmooth","v":72},true]
["xlXYScatterSmoothNoMarkers",{"$f":"xlXYScatterSmoothNoMarkers","v":73},true]
["Unknown",-4111,true]
["xlStockOHLC",{"$f":"xlStockOHLC","v":89},true]
["xlStockHLC",{"$f":"xlStockHLC","v":88},true]
["xlStockVHLC",{"$f":"xlStockVHLC","v":90},true]
["xlStockVOHLC",{"$f":"xlStockVOHLC","v":91},true]